fUSD/lending_fUSD_20250215
["ID","MTS","AMOUNT","RATE_DAILY","PERIOD"]
[353175388,1739629836189,-500.53878858,0.00011043,2]
[353175389,1739629836198,-500.0,0.00011043,2]
[353175390,1739629836207,-500.0,0.00011043,2]
[353175391,1739629836217,-500.44788077,0.00011043,2]
[353175392,1739629836227,-500.0,0.00011043,2]
[353175393,1739629836236,-500.0,0.00011043,2]
[353175394,1739629836246,-500.0,0.00011043,2]
[353175395,1739629836256,-500.77463396,0.00011043,2]
[353175396,1739629836265,-500.0,0.00011043,2]
[353175397,1739629836275,-500.61721258,0.00011043,2]
[353175398,1739629836284,-500.0,0.00011043,2]
[353175399,1739629836294,-500.0,0.00011043,2]
[353175400,1739629836303,-500.26814227,0.00011043,2]
[353175401,1739629836313,-500.0,0.00011043,2]
[353175402,1739629836322,-500.0,0.00011043,2]
[353175403,1739629836332,-500.0,0.00011043,2]
[353175404,1739629836341,-500.0,0.00011043,2]
[353175405,1739629836351,-500.0,0.00011043,2]
[353175406,1739629836360,-502.03580116,0.00011043,2]
[353175407,1739629836369,-500.0,0.00011043,2]
[353175408,1739629836378,-500.0,0.00011043,2]
[353175409,1739629836387,-500.0,0.00011043,2]
[353175410,1739629836396,-500.0,0.00011043,2]
[353175411,1739629836405,-500.0,0.00011043,2]
[353175412,1739629836414,-500.0,0.00011043,2]
[353175413,1739629836423,-500.54720142,0.00011043,2]
[353175414,1739629836433,-500.0,0.00011043,2]
[353175415,1739629836442,-500.33891069,0.00011043,2]
[353175416,1739629836450,-500.0,0.00011043,2]
[353175417,1739629836460,-500.27500581,0.00011043,2]
[353175418,1739629836469,-500.0,0.00011043,2]
[353175419,1739629836478,-500.0,0.00011043,2]
[353175420,1739629836487,-500.0,0.00011043,2]
[353175421,1739629836496,-500.0,0.00011043,2]
[353175422,1739629836505,-499.85219119,0.00011043,2]
[353175423,1739629836514,-500.29800843,0.00011043,2]
[353175424,1739629836523,-500.0,0.00011043,2]
[353175425,1739629836532,-500.0,0.00011043,2]
[353175426,1739629836542,-500.0,0.00011043,2]
[353175427,1739629836551,-500.0,0.00011043,2]
[353175428,1739629836562,-500.0,0.00011043,2]
[353175429,1739629836572,-500.0,0.00011043,2]
[353175430,1739629836580,-500.0,0.00011043,2]
[353175431,1739629836590,-500.0,0.00011043,2]
[353175432,1739629836600,-511.25945892,0.00011043,2]
[353175433,1739629836609,-500.0,0.00011043,2]
[353175434,1739629836618,-500.0,0.00011043,2]
[353175435,1739629836627,-500.0,0.00011043,2]
[353175436,1739629836636,-500.0,0.00011043,2]
[353175437,1739629836646,-500.0,0.00011043,2]
[353175438,1739629836656,-500.0,0.00011043,2]
[353175439,1739629836665,-500.0,0.00011043,2]
[353175440,1739629836675,-500.0,0.00011043,2]
[353175441,1739629836685,-500.3219049,0.00011043,2]
[353175442,1739629836695,-500.0,0.00011043,2]
[353175443,1739629836703,-500.0,0.00011043,2]
[353175444,1739629836713,-501.81776813,0.00011043,2]
[353175445,1739629836722,-500.0,0.00011043,2]
[353175446,1739629836731,-505.93038607,0.00011043,2]
[353175447,1739629836740,-627.38969889,0.00011043,2]
[353175448,1739629836750,-500.0,0.00011043,2]
[353175449,1739629836761,-500.0,0.00011043,2]
[353175450,1739629836772,-277.38015964,0.00011043,2]
[353175451,1739629836784,-500.0,0.00011043,2]
[353175452,1739629836795,-500.0,0.00011043,2]
[353175453,1739629836804,-502.64870772,0.00011043,2]
[353175454,1739629836813,-388.95674528,0.00011043,2]
[353175455,1739629836822,-500.0,0.00011043,2]
[353175456,1739629836831,-273.13,0.00011043,2]
[353175457,1739629836840,-500.0,0.00011043,2]
[353175458,1739629836849,-500.0,0.00011043,2]
[353175459,1739629836859,-500.0,0.00011043,2]
[353175460,1739629836868,-500.0,0.00011043,2]
[353175461,1739629836880,-501.85534149,0.00011043,2]
[353175462,1739629836896,-502.52454328,0.00011043,2]
[353175463,1739629836905,-500.0,0.00011043,2]
[353175464,1739629836915,-500.0,0.00011043,2]
[353175465,1739629836926,-500.0,0.00011043,2]
[353175466,1739629836936,-500.0,0.00011043,2]
[353175467,1739629836945,-500.0,0.00011043,2]
[353175468,1739629836955,-500.0,0.00011043,2]
[353175469,1739629836965,-752.74,0.00011043,2]
[353175470,1739629836973,-388.43471373,0.00011043,2]
[353175471,1739629837017,-115.07765735,0.00011043,2]
[353175472,1739629837026,-500.4673925,0.00011043,2]
[353175473,1739629837035,-500.0,0.00011043,2]
[353175474,1739629837044,-500.0,0.00011043,2]
[353175475,1739629837053,-500.0,0.00011043,2]
[353175476,1739629837062,-500.0,0.00011043,2]
[353175477,1739629837070,-500.0,0.00011043,2]
[353175478,1739629837080,-794.62,0.00011043,2]
[353175479,1739629837089,-176.7473867,0.00011043,2]
[353175480,1739629837098,-501.22483022,0.00011043,2]
[353175481,1739629837107,-443.10382868,0.00011043,2]
[353175482,1739629837116,-500.0,0.00011043,2]
[353175483,1739629837126,-969.26,0.00011043,2]
[353175484,1739629837135,-500.0,0.00011043,2]
[353175485,1739629837144,-500.0,0.00011043,2]
[353175486,1739629837153,-504.53108556,0.00011043,2]
[353175487,1739629837162,-500.0,0.00011043,2]
[353175488,1739629837172,-500.0,0.00011043,2]
[353175489,1739629837181,-500.0,0.00011043,2]
[353175490,1739629837191,-719.78,0.00011043,2]
[353175491,1739629837200,-500.8163043,0.00011043,2]
[353175492,1739629837210,-500.0,0.00011043,2]
[353175493,1739629837219,-500.0,0.00011043,2]
[353175494,1739629837228,-1391.27,0.00011043,2]
[353175495,1739629837238,-628.89370761,0.00011043,2]
[353175496,1739629837247,-500.0,0.00011043,2]
[353175497,1739629837256,-564.91463206,0.00011043,2]
[353175498,1739629837264,-498.4213162,0.00011043,2]
[353175499,1739629837274,-500.0,0.00011043,2]
[353175500,1739629837283,-500.0,0.00011043,2]
[353175501,1739629837292,-500.0,0.00011043,2]
[353175502,1739629837301,-536.16691759,0.00011043,2]
[353175503,1739629837310,-758.6,0.00011043,2]
[353175504,1739629837319,-218.76931305,0.00011043,2]
[353175505,1739629837328,-500.0,0.00011043,2]
[353175506,1739629837337,-500.0,0.00011043,2]
[353175507,1739629837349,-500.0,0.00011043,2]
[353175508,1739629837359,-500.0,0.00011043,2]
[353175509,1739629837368,-500.0,0.00011043,2]
[353175510,1739629837377,-541.74294832,0.00011043,2]
[353175511,1739629837386,-758.17,0.00011043,2]
[353175512,1739629837395,-500.0,0.00011043,2]
[353175513,1739629837405,-500.0,0.00011043,2]
[353175514,1739629837415,-500.0,0.00011043,2]
[353175515,1739629837424,-501.73181401,0.00011043,2]
[353175516,1739629837436,-500.0,0.00011043,2]
[353175517,1739629837444,-500.0,0.00011043,2]
[353175518,1739629837453,-500.0,0.00011043,2]
[353175519,1739629837463,-500.0,0.00011043,2]
[353175520,1739629837471,-500.0,0.00011043,2]
[353175521,1739629837481,-500.0,0.00011043,2]
[353175522,1739629837490,-500.0,0.00011043,2]
[353175523,1739629837499,-500.0,0.00011043,2]
[353175524,1739629837509,-1208.99,0.00011043,2]
[353175525,1739629837518,-500.0,0.00011043,2]
[353175526,1739629837528,-500.0,0.00011043,2]
[353175527,1739629837537,-562.78,0.00011043,2]
[353175528,1739629837546,-500.0,0.00011043,2]
[353175529,1739629837555,-500.0,0.00011043,2]
[353175530,1739629837564,-503.82,0.00011043,2]
[353175531,1739629837574,-866.49,0.00011043,2]
[353175532,1739629837583,-269.32570386,0.00011043,2]
[353175533,1739629837592,-500.0,0.00011043,2]
[353175534,1739629837601,-500.0,0.00011043,2]
[353175535,1739629837610,-500.0,0.00011043,2]
[353175536,1739629837619,-514.25,0.00011043,2]
[353175537,1739629837628,-500.0,0.00011043,2]
[353175538,1739629837640,-520.67,0.00011043,2]
[353175539,1739629837650,-500.0,0.00011043,2]
[353175540,1739629837659,-500.0,0.00011043,2]
[353175541,1739629837668,-501.36275635,0.00011043,2]
[353175542,1739629837678,-759.02,0.00011043,2]
[353175543,1739629837687,-1005.93,0.00011043,2]
[353175544,1739629837695,-502.30810413,0.00011043,2]
[353175545,1739629837705,-754.3,0.00011043,2]
[353175546,1739629837714,-561.93246369,0.00011043,2]
[353175547,1739629837723,-500.0,0.00011043,2]
[353175548,1739629837732,-500.0,0.00011043,2]
[353175549,1739629837741,-500.0,0.00011043,2]
[353175550,1739629837750,-500.0,0.00011043,2]
[353175551,1739629837759,-912.19,0.00011043,2]
[353175552,1739629837768,-500.0,0.00011043,2]
[353175553,1739629837777,-885.48,0.00011043,2]
[353175554,1739629837786,-545.67,0.00011043,2]
[353175555,1739629837795,-500.52902449,0.00011043,2]
[353175556,1739629837804,-500.0,0.00011043,2]
[353175557,1739629837813,-500.0,0.00011043,2]
[353175558,1739629837822,-500.0,0.00011043,2]
[353175559,1739629837830,-471.55421426,0.00011043,2]
[353175560,1739629837839,-510.34141966,0.00011043,2]
[353175561,1739629837848,-500.0,0.00011043,2]
[353175562,1739629837858,-500.0,0.00011043,2]
[353175563,1739629837867,-500.0,0.00011043,2]
[353175564,1739629837876,-501.22687295,0.00011043,2]
[353175565,1739629837885,-500.0,0.00011043,2]
[353175567,1739629837897,-809.79,0.00011043,2]
[353175568,1739629837906,-500.0,0.00011043,2]
[353175569,1739629837915,-1117.78,0.00011043,2]
[353175570,1739629837924,-648.52,0.00011043,2]
[353175571,1739629837933,-507.03117194,0.00011043,2]
[353175572,1739629837943,-502.15886099,0.00011043,2]
[353175573,1739629837952,-514.99142581,0.00011043,2]
[353175574,1739629837963,-500.0,0.00011043,2]
[353175575,1739629837972,-500.0,0.00011043,2]
[353175577,1739629837982,-510.0318911,0.00011043,2]
[353175579,1739629837991,-500.0,0.00011043,2]
[353175581,1739629838000,-500.0,0.00011043,2]
[353175582,1739629838010,-1117.69,0.00011043,2]
[353175584,1739629838019,-532.5,0.00011043,2]
[353175586,1739629838028,-500.0,0.00011043,2]
[353175588,1739629838038,-510.62,0.00011043,2]
[353175590,1739629838048,-604.84,0.00011043,2]
[353175592,1739629838058,-370.12759514,0.00011043,2]
[353175597,1739629838095,-500.0,0.00010961,2]
[353175599,1739629838105,-134.76724059,0.00011043,2]
[353175601,1739629838114,-500.79430067,0.00011043,2]
[353175602,1739629838123,-500.0,0.00011043,2]
[353175604,1739629838131,-500.0,0.00011043,2]
[353175606,1739629838140,-457.01495808,0.00011043,2]
[353175608,1739629838149,-500.0,0.00011043,2]
[353175610,1739629838158,-535.73141106,0.00011043,2]
[353175612,1739629838167,-500.0,0.00011043,2]
[353175614,1739629838176,-500.45145198,0.00011043,2]
[353175616,1739629838187,-500.0,0.00011043,2]
[353175618,1739629838196,-500.0,0.00011043,2]
[353175620,1739629838205,-500.0,0.00011043,2]
[353175621,1739629838214,-343.03148203,0.00011043,2]
[353175623,1739629838223,-508.52046026,0.00011043,2]
[353175625,1739629838233,-500.0,0.00011043,2]
[353175627,1739629838242,-500.0,0.00011043,2]
[353175629,1739629838251,-501.0598438,0.00011043,2]
[353175631,1739629838261,-551.04,0.00011043,2]
[353175633,1739629838270,-500.0,0.00011043,2]
[353175635,1739629838278,-1189.24,0.00011043,2]
[353175637,1739629838287,-662.18,0.00011043,2]
[353175639,1739629838296,-500.0,0.00011043,2]
[353175641,1739629838305,-500.0,0.00011043,2]
[353175643,1739629838314,-699.95,0.00011043,2]
[353175645,1739629838323,-500.0,0.00011043,2]
[353175647,1739629838332,-500.0,0.00011043,2]
[353175649,1739629838341,-908.9,0.00011043,2]
[353175651,1739629838351,-500.0,0.00011043,2]
[353175653,1739629838360,-533.4599666,0.00011043,2]
[353175655,1739629838370,-500.0,0.00011043,2]
[353175657,1739629838379,-500.0,0.00011043,2]
[353175658,1739629838387,-500.0,0.00011043,2]
[353175660,1739629838396,-500.0,0.00011043,2]
[353175662,1739629838405,-500.0,0.00011043,2]
[353175664,1739629838414,-500.0,0.00011043,2]
[353175666,1739629838423,-500.0,0.00011043,2]
[353175668,1739629838434,-503.31477088,0.00011043,2]
[353175670,1739629838443,-964.05,0.00011043,2]
[353175672,1739629838451,-500.0,0.00011043,2]
[353175674,1739629838460,-584.62,0.00011043,2]
[353175676,1739629838469,-500.0,0.00011043,2]
[353175678,1739629838478,-802.38,0.00011043,2]
[353175680,1739629838487,-500.0,0.00011043,2]
[353175682,1739629838496,-370.86618761,0.00011043,2]
[353175776,1739629839751,-129.13381239,0.00011043,2]
[353175777,1739629839761,-500.0,0.00011043,2]
[353175778,1739629839771,-413.03108018,0.00011043,2]
[353175779,1739629839781,-500.0,0.00011043,2]
[353175780,1739629839791,-553.31,0.00011043,2]
[353175781,1739629839800,-500.0,0.00011043,2]
[353175782,1739629839810,-500.0,0.00011043,2]
[353175783,1739629839820,-500.0,0.00011043,2]
[353175784,1739629839830,-500.0,0.00011043,2]
[353175785,1739629839839,-499.99535576,0.00011043,2]
[353175786,1739629839848,-500.0,0.00011043,2]
[353175787,1739629839859,-500.0,0.00011044,2]
[353175788,1739629839868,-500.0,0.00011044,2]
[353175789,1739629839877,-500.0,0.00011044,2]
[353175790,1739629839888,-314.72975167,0.00011044,2]
[353175791,1739629839901,-185.27024833,0.00011044,2]
[353175792,1739629839910,-500.0,0.00011044,2]
[353175793,1739629839919,-500.0,0.00011044,2]
[353175794,1739629839930,-500.0,0.00011044,2]
[353175795,1739629839940,-500.0,0.00011044,2]
[353175796,1739629839950,-532.16,0.00011044,2]
[353175797,1739629839960,-500.0,0.00011044,2]
[353175798,1739629839973,-500.0,0.00011044,2]
[353175799,1739629839985,-500.0,0.00011044,2]
[353175800,1739629839995,-500.0,0.00011044,2]
[353175801,1739629840005,-500.0,0.00011044,2]
[353175802,1739629840015,-500.0,0.00011044,2]
[353175803,1739629840025,-344.09135715,0.00011044,2]
[353175804,1739629840037,-155.90864285,0.00011044,2]
[353175805,1739629840047,-500.0,0.00011044,2]
[353175806,1739629840057,-500.0,0.00011044,2]
[353175807,1739629840066,-500.0,0.00011044,2]
[353175808,1739629840076,-30.4952504,0.00011044,2]
[353175809,1739629840088,-469.5047496,0.00011044,2]
[353175810,1739629840098,-500.0,0.00011044,2]
[353175811,1739629840110,-6.69773738,0.00011044,2]
[353175812,1739629840122,-493.30226262,0.00011044,2]
[353175813,1739629840132,-500.0,0.00011044,2]
[353175814,1739629840142,-500.0,0.00011044,2]
[353175815,1739629840151,-500.0,0.00011044,2]
[353175816,1739629840161,-500.0,0.00011044,2]
[353175817,1739629840171,-500.0,0.00011044,2]
[353175818,1739629840181,-500.0,0.00011044,2]
[353175819,1739629840191,-500.0,0.00011044,2]
[353175820,1739629840200,-556.71,0.00011044,2]
[353175821,1739629840210,-500.0,0.00011044,2]
[353175822,1739629840219,-500.0,0.00011044,2]
[353175823,1739629840229,-500.0,0.00011044,2]
[353175824,1739629840238,-500.0,0.00011044,2]
[353175825,1739629840247,-500.0,0.00011044,2]
[353175826,1739629840256,-500.0,0.00011044,2]
[353175827,1739629840266,-500.0,0.00011044,2]
[353175828,1739629840275,-500.0,0.00011044,2]
[353175829,1739629840285,-500.0,0.00011044,2]
[353175830,1739629840294,-500.0,0.00011044,2]
[353175831,1739629840304,-214.26,0.00011044,2]
[353175832,1739629840313,-500.0,0.00011044,2]
[353175833,1739629840324,-500.0,0.00011044,2]
[353175834,1739629840333,-500.0,0.00011044,2]
[353175835,1739629840344,-500.0,0.00011044,2]
[353175836,1739629840355,-500.0,0.00011044,2]
[353175837,1739629840365,-500.0,0.00011044,2]
[353175838,1739629840375,-500.0,0.00011044,2]
[353175839,1739629840384,-500.0,0.00011044,2]
[353175840,1739629840393,-500.0,0.00011044,2]
[353175841,1739629840403,-500.0,0.00011044,2]
[353175842,1739629840414,-500.0,0.00011044,2]
[353175843,1739629840423,-500.0,0.00011044,2]
[353175844,1739629840432,-500.0,0.00011044,2]
[353175845,1739629840442,-500.0,0.00011044,2]
[353175846,1739629840451,-500.0,0.00011044,2]
[353175847,1739629840460,-500.0,0.00011045,2]
[353175848,1739629840470,-500.0,0.00011045,2]
[353175849,1739629840480,-754.43,0.00011045,2]
[353175850,1739629840490,-500.0,0.00011045,2]
[353175851,1739629840500,-500.0,0.00011045,2]
[353175852,1739629840509,-689.84,0.00011045,2]
[353175853,1739629840519,-500.0,0.00011045,2]
[353175854,1739629840528,-500.0,0.00011045,2]
[353175855,1739629840537,-707.88,0.00011045,2]
[353175856,1739629840547,-893.57,0.00011045,2]
[353175857,1739629840556,-1000.0,0.00011045,2]
[353175858,1739629840566,-736.64,0.00011045,2]
[353175859,1739629840575,-839.33,0.00011045,2]
[353175860,1739629840585,-500.0,0.00011045,2]
[353175861,1739629840595,-500.0,0.00011045,2]
[353175862,1739629840604,-501.52382882,0.00011045,2]
[353175863,1739629840613,-500.0,0.00011046,2]
[353175864,1739629840623,-500.0,0.00011046,2]
[353175865,1739629840641,-500.0,0.00011046,2]
[353175866,1739629840650,-596.75,0.00011046,2]
[353175867,1739629840660,-503.68277338,0.00011046,2]
[353175868,1739629840671,-500.0,0.00011046,2]
[353175869,1739629840680,-500.0,0.00011046,2]
[353175870,1739629840690,-500.0,0.00011046,2]
[353175871,1739629840700,-500.0,0.00011046,2]
[353175872,1739629840709,-477.82979663,0.00011046,2]
[353175873,1739629840722,-22.17020337,0.00011046,2]
[353175874,1739629840731,-500.0,0.00011046,2]
[353175875,1739629840741,-500.0,0.00011046,2]
[353175876,1739629840750,-195.46537656,0.00011046,2]
[353175877,1739629840763,-304.53462344,0.00011046,2]
[353175878,1739629840772,-500.0,0.00011046,2]
[353175879,1739629840782,-500.0,0.00011046,2]
[353175880,1739629840791,-500.0,0.00011046,2]
[353175881,1739629840800,-500.0,0.00011046,2]
[353175882,1739629840810,-500.0,0.00011046,2]
[353175883,1739629840820,-500.0,0.00011046,2]
[353175884,1739629840830,-500.0,0.00011046,2]
[353175885,1739629840840,-505.8,0.00011046,2]
[353175886,1739629840849,-504.22330116,0.00011062,2]
[353175887,1739629840859,-208.03329522,0.00011062,2]
[353175888,1739629840868,-500.0,0.00011062,2]
[353175889,1739629840877,-500.0,0.00011062,2]
[353175890,1739629840890,-500.0,0.00011062,2]
[353175891,1739629840899,-500.0,0.00011062,2]
[353175892,1739629840909,-500.0,0.00011062,2]
[353175893,1739629840918,-620.14162512,0.00011062,2]
[353175895,1739629840927,-500.0,0.00011062,2]
[353175897,1739629840938,-500.0,0.00011062,2]
[353175898,1739629840948,-500.0,0.00011062,2]
[353175899,1739629840957,-429.96459482,0.00011062,2]
[353175900,1739629840968,-447.33946421,0.00011062,2]
[353175901,1739629840978,-500.0,0.00011062,2]
[353175902,1739629840987,-500.0,0.00011062,2]
[353175903,1739629840996,-500.0,0.00011062,2]
[353175904,1739629841005,-500.0,0.00011062,2]
[353175905,1739629841014,-500.0,0.00011062,2]
[353175906,1739629841023,-500.0,0.00011062,2]
[353175907,1739629841032,-500.0,0.00011062,2]
[353175908,1739629841042,-500.0,0.00011062,2]
[353175909,1739629841051,-500.0,0.00011062,2]
[353175910,1739629841060,-500.0,0.00011062,2]
[353175911,1739629841069,-500.0,0.00011062,2]
[353175912,1739629841078,-500.0,0.00011062,2]
[353175913,1739629841087,-500.0,0.00011062,2]
[353175914,1739629841096,-500.0,0.00011062,2]
[353175915,1739629841106,-500.0,0.00011062,2]
[353175916,1739629841115,-500.0,0.00011062,2]
[353175917,1739629841124,-500.0,0.00011062,2]
[353175918,1739629841133,-500.0,0.00011062,2]
[353175919,1739629841142,-500.0,0.00011062,2]
[353175920,1739629841152,-500.0,0.00011062,2]
[353175921,1739629841162,-500.0,0.00011062,2]
[353175922,1739629841171,-500.0,0.00011062,2]
[353175923,1739629841181,-500.0,0.00011062,2]
[353175924,1739629841191,-500.0,0.00011062,2]
[353175925,1739629841200,-500.0,0.00011062,2]
[353175926,1739629841210,-500.0,0.00011062,2]
[353175927,1739629841219,-500.0,0.00011062,2]
[353175928,1739629841228,-327.63705846,0.00011063,2]
[353175929,1739629841238,-545.57853345,0.00011064,2]
[353175930,1739629841247,-599.16101885,0.00011064,2]
[353175931,1739629841259,-7095.23286851,0.00011064,2]
[353175932,1739629841268,-254.24892056,0.00011064,2]
[353175933,1739629841278,-817.60343048,0.00011064,2]
[353175934,1739629841287,-154.53782294,0.00011064,2]
[353175935,1739629841296,-1000.0,0.00011098,2]
[353175936,1739629841305,-1354.40709589,0.00011099,2]
[353175937,1739629841314,-1354.40709584,0.00011099,2]
[353175938,1739629841323,-1354.40709584,0.00011099,2]
[353175939,1739629841332,-1041.44825002,0.00011099,2]
[353175940,1739629841344,-312.95884582,0.00011099,2]
[353175941,1739629841353,-1354.40709584,0.00011099,2]
[353175942,1739629841362,-399.853844,0.00011099,2]
[353175943,1739629841498,-954.55325184,0.00011099,2]
[353175944,1739629841508,-1354.40709584,0.00011099,2]
[353175945,1739629841517,-1354.40709584,0.00011099,2]
[353175946,1739629841526,-1354.40709584,0.00011099,2]
[353175947,1739629841537,-1354.40709584,0.00011099,2]
[353175948,1739629841548,-500.0,0.00011124,2]
[353175949,1739629841562,-736.83,0.00011124,2]
[353175950,1739629841572,-500.0,0.00011124,2]
[353175951,1739629841584,-153.620143,0.00011124,2]
[353175952,1739629841595,-549.43,0.00011124,2]
[353175953,1739629841606,-500.0,0.00011124,2]
[353175954,1739629841619,-279.36,0.00011124,2]
[353175955,1739629841631,-500.0,0.00011124,2]
[353175956,1739629841645,-500.0,0.00011124,2]
[353175957,1739629841658,-803.02,0.00011124,2]
[353175958,1739629841670,-766.93,0.00011124,2]
[353175959,1739629841683,-918.78,0.00011124,2]
[353175960,1739629841694,-151.472388,0.00011124,2]
[353175961,1739629841706,-2684.05,0.00011124,2]
[353175962,1739629841716,-538.92,0.00011124,2]
[353175963,1739629841727,-823.56,0.00011124,2]
[353175964,1739629841740,-559.19,0.00011124,2]
[353175965,1739629841751,-771.88,0.00011124,2]
[353175966,1739629841764,-500.0,0.00011124,2]
[353175967,1739629841776,-500.0,0.00011124,2]
[353175968,1739629841787,-1930.95,0.00011124,2]
[353175969,1739629841800,-663.91,0.00011124,2]
[353175970,1739629841812,-823.31,0.00011124,2]
[353175971,1739629841824,-971.88,0.00011124,2]
[353175972,1739629841836,-507.78,0.00011124,2]
[353175973,1739629841848,-733.54,0.00011124,2]
[353175974,1739629841859,-500.0,0.00011124,2]
[353175975,1739629841872,-300.0,0.00011125,2]
[353175976,1739629841886,-300.0,0.00011125,2]
[353175977,1739629841901,-500.0,0.00011125,2]
[353175978,1739629841912,-500.0,0.00011125,2]
[353175979,1739629841925,-607.70010602,0.00011126,2]
[353175980,1739629841937,-501.84431738,0.00011126,2]
[353175981,1739629841949,-502.86772417,0.00011126,2]
[353175982,1739629841961,-500.0,0.00011126,2]
[353175983,1739629841974,-500.0,0.00011126,2]
[353175984,1739629841986,-500.0,0.00011126,2]
[353175985,1739629841998,-500.0,0.00011126,2]
[353175986,1739629842009,-514.62,0.00011126,2]
[353175987,1739629842019,-643.77663694,0.00011126,2]
[353175988,1739629842030,-649.7,0.00011126,2]
[353175989,1739629842041,-649.74,0.00011126,2]
[353175990,1739629842051,-500.0,0.00011126,2]
[353175991,1739629842064,-500.0,0.00011126,2]
[353175992,1739629842078,-500.0,0.00011126,2]
[353175993,1739629842088,-500.0,0.00011126,2]
[353175994,1739629842098,-500.0,0.00011126,2]
[353175995,1739629842109,-500.72698189,0.00011126,2]
[353175996,1739629842119,-500.94217273,0.00011126,2]
[353175997,1739629842131,-629.47570865,0.00011126,2]
[353175998,1739629842143,-500.0,0.00011126,2]
[353175999,1739629842156,-172.89758647,0.00011126,2]
[353176000,1739629842166,-500.0,0.00011126,2]
[353176001,1739629842177,-500.0,0.00011126,2]
[353176002,1739629842189,-500.0,0.00011126,2]
[353176003,1739629842199,-504.12757462,0.00011126,2]
[353176004,1739629842210,-500.0,0.00011126,2]
[353176005,1739629842220,-500.0,0.00011126,2]
[353176006,1739629842233,-500.0,0.00011126,2]
[353176007,1739629842244,-500.0,0.00011126,2]
[353176008,1739629842255,-500.0,0.00011126,2]
[353176009,1739629842265,-500.0,0.00011126,2]
[353176010,1739629842276,-570.99,0.00011126,2]
[353176011,1739629842286,-500.0,0.00011126,2]
[353176012,1739629842297,-500.0,0.00011126,2]
[353176013,1739629842307,-500.0,0.00011126,2]
[353176014,1739629842318,-503.02073104,0.00011126,2]
[353176015,1739629842329,-500.0,0.00011126,2]
[353176016,1739629842339,-500.0,0.00011126,2]
[353176017,1739629842350,-393.11443953,0.00011126,2]
[353176018,1739629842360,-500.0,0.00011126,2]
[353176019,1739629842371,-500.0,0.00011126,2]
[353176020,1739629842382,-500.0,0.00011126,2]
[353176021,1739629842393,-319.83017673,0.00011126,2]
[353176022,1739629842404,-500.0,0.00011126,2]
[353176023,1739629842414,-500.0,0.00011126,2]
[353176024,1739629842425,-502.68440932,0.00011126,2]
[353176025,1739629842436,-500.0,0.00011126,2]
[353176026,1739629842447,-500.0,0.00011126,2]
[353176027,1739629842457,-500.0,0.00011126,2]
[353176028,1739629842468,-565.5,0.00011126,2]
[353176029,1739629842480,-500.0,0.00011126,2]
[353176030,1739629842491,-500.0,0.00011126,2]
[353176031,1739629842502,-500.0,0.00011126,2]
[353176032,1739629842512,-500.0,0.00011126,2]
[353176033,1739629842524,-500.0,0.00011126,2]
[353176034,1739629842536,-500.0,0.00011126,2]
[353176035,1739629842547,-500.0,0.00011126,2]
[353176036,1739629842558,-500.0,0.00011126,2]